lending/lending_fUSD_20240124
["ID","MTS","AMOUNT","RATE_DAILY","PERIOD"]
[312624129,1706110240646,-454.56000002,0.00037988,3]
[312624130,1706110240658,-259.155,0.00037988,3]
[312624131,1706110240669,-292.84038193,0.00037988,3]
[312624132,1706110240681,-9869.34894765,0.00037988,3]
[312624133,1706110240692,-39264.50309013,0.00037988,3]
[312624157,1706110245616,-151.46361757,0.00036099,2]
[312624158,1706110245625,-214.17,0.0003701,2]
[312624159,1706110245635,-136393.15349852,0.00037988,3]
[312624160,1706110245644,-881.45,0.00037988,2]
[312624161,1706110245654,-881.45,0.00037989,2]
[312624162,1706110245663,-96407.1389435,0.00037992,3]
[312624163,1706110245672,-720.57762816,0.00037993,2]
[312624164,1706110245682,-297.0,0.00037995,5]
[312624165,1706110245691,-7106.77367024,0.00037995,5]
[312624166,1706110245702,-157.06072298,0.00037995,4]
[312624167,1706110245711,-166376.99180423,0.00037995,2]
[312624168,1706110245720,-208.44865702,0.00037995,4]
[312624169,1706110245729,-188.85163637,0.00037995,4]
[312624170,1706110245739,-420.41973468,0.00037996,2]
[312624171,1706110245748,-1581.2849475,0.00037996,4]
[312624172,1706110245759,-764.94187002,0.00037996,4]
[312624173,1706110245768,-20491.71956547,0.00037996,2]
[312624174,1706110245777,-881.45,0.00037996,2]
[312624175,1706110245786,-2159.7509471,0.00037997,2]
[312624176,1706110245795,-404228.44470338,0.00037997,7]
[312624177,1706110245810,-12338.8353619,0.00037997,7]
[312624178,1706110245823,-30041.64325747,0.00037997,7]
[312624185,1706110252475,1414.00001864,0.0002,2]
[312624206,1706110790848,308.21632432,0.0002,2]
[312624207,1706110792964,289.61005449,0.0002,2]
[312624208,1706110796430,155.78198859,0.0002,2]
[312624209,1706110808476,857.60803617,0.0002,2]
[312624210,1706110832245,1201.28781862,0.0002,2]
[312624224,1706111420736,545.36557681,0.0002,7]
[312624232,1706111431600,-405.94791723,0.00024993,2]
[312624233,1706111431673,-594.05208277,0.00024993,2]
[312624234,1706111431682,-697.62700742,0.00024994,2]
[312624235,1706111431692,-450.0,0.00025,3]
[312624236,1706111431701,-200.0,0.00025,2]
[312624237,1706111431710,-500.0,0.00026,2]
[312624238,1706111431719,-500.0,0.00027,3]
[312624239,1706111431729,-205.0,0.00028201,2]
[312624240,1706111431739,-550.0,0.00029,3]
[312624241,1706111431748,-155.0,0.0003,2]
[312624242,1706111431758,-600.0,0.00031,3]
[312624243,1706111431767,-150.99,0.00031,2]
[312624244,1706111431777,-3168.51,0.00031,2]
[312624245,1706111431786,-205.0,0.00031734,8]
[312624246,1706111431796,-650.0,0.00033,3]
[312624247,1706111431805,-193.19,0.000338,2]
[312624248,1706111431814,-193.19,0.000338,2]
[312624249,1706111431823,-193.19,0.000338,2]
[312624250,1706111431832,-193.19,0.000338,2]
[312624251,1706111431842,-193.19,0.000338,2]
[312624252,1706111431851,-193.19,0.000338,2]
[312624253,1706111431862,-193.19,0.000338,2]
[312624254,1706111431873,-193.19,0.000338,2]
[312624255,1706111431882,-193.19,0.000338,2]
[312624256,1706111431893,-193.19,0.000338,2]
[312624257,1706111431902,-193.19,0.000338,2]
[312624258,1706111431911,-193.19,0.000338,2]
[312624260,1706111431920,-193.19,0.000338,2]
[312624261,1706111431930,-193.19,0.000338,2]
[312624263,1706111431940,-193.19,0.000338,2]
[312624266,1706111431951,-193.19,0.000338,2]
[312624268,1706111431961,-193.19,0.000338,2]
[312624269,1706111431970,-193.19,0.000338,2]
[312624271,1706111431980,-193.19,0.000338,2]
[312624273,1706111431990,-193.19,0.000338,2]
[312624275,1706111432000,-383.48,0.00033933,2]
[312624277,1706111432010,-359.41,0.0003398,2]
[312624279,1706111432020,-1000.0,0.00034,4]
[312624282,1706111432029,-349.92,0.0003404,2]
[312624284,1706111432040,-5000.0,0.000345,15]
[312624286,1706111432050,-700.0,0.00035,3]
[312624288,1706111432059,-155.0,0.00035,2]
[312624290,1706111432069,-205.0,0.00035267,14]
[312624292,1706111432079,-1000.0,0.000353,2]
[312624294,1706111432088,-359.41,0.00035624,2]
[312624296,1706111432097,-2409.02496556,0.00035803,8]
[312624298,1706111432110,-2708.3,0.00035873,2]
[312624300,1706111432119,-250.0,0.00035889,2]
[312624302,1706111432128,-175.91,0.00035898,2]
[312624304,1706111432138,-2108.65958054,0.00035993,8]
[312624306,1706111432150,-521.89324619,0.00035993,8]
[312624308,1706111432160,-230.46,0.00036015,15]
[312624310,1706111432170,-616.52,0.00036017,2]
[312624312,1706111432180,-206.57391313,0.00036053,8]
[312624314,1706111432190,-151.46361756,0.00036097,2]
[312624316,1706111432200,-349.92,0.00036304,2]
[312624318,1706111432210,-183.4804616,0.000369,14]
[312624320,1706111432220,-10028.65446927,0.00037,6]
[312624322,1706111432230,-174.49949303,0.00037244,4]
[312624324,1706111432239,-1884.04,0.00037254,2]
[312624326,1706111432248,-811.98,0.00037254,2]
[312624327,1706111432257,-359.41,0.00037268,2]
[312624329,1706111432267,-1120.24,0.00037307,2]
[312624330,1706111432277,-150.0,0.000374,2]
[312624331,1706111432287,-514.34,0.000374,30]
[312624332,1706111432297,-150.0,0.000374,20]
[312624333,1706111432307,-175.91,0.00037669,2]
[312624334,1706111432316,-300.0,0.00037734,2]
[312624335,1706111432326,-150.0,0.00037752,2]
[312624336,1706111432335,-150.0,0.00037754,2]
[312624337,1706111432344,-150.0,0.00037759,2]
[312624338,1706111432357,-150.0,0.0003776,2]
[312624339,1706111432366,-150.0,0.00037763,2]
[312624340,1706111432376,-150.0,0.00037764,2]
[312624341,1706111432386,-150.0,0.00037766,2]
[312624342,1706111432395,-150.0,0.00037772,2]
[312624343,1706111432405,-150.0,0.00037773,2]
[312624344,1706111432414,-323.83097278,0.00037779,2]
[312624345,1706111432423,-150.0,0.00037787,2]
[312624346,1706111432432,-150.0,0.00037789,2]
[312624347,1706111432442,-150.0,0.00037789,2]
[312624348,1706111432452,-150.0,0.00037794,2]
[312624349,1706111432462,-150.0,0.00037805,2]
[312624350,1706111432471,-1500.0,0.00037809,2]
[312624351,1706111432480,-150.0,0.00037813,2]
[312624352,1706111432490,-308.7996266,0.00037815,2]
[312624353,1706111432499,-300.0,0.00037816,2]
[312624354,1706111432508,-150.0,0.00037818,2]
[312624355,1706111432518,-150.0,0.00037819,2]
[312624356,1706111432527,-150.0,0.0003782,2]
[312624357,1706111432536,-150.0,0.00037821,2]
[312624358,1706111432546,-150.0,0.00037828,2]
[312624359,1706111432556,-267.32004551,0.00037829,2]
[312624360,1706111432565,-150.0,0.0003783,2]
[312624361,1706111432575,-150.0,0.00037833,2]
[312624362,1706111432584,-300.0,0.00037838,2]
[312624363,1706111432594,-150.0,0.00037839,2]
[312624364,1706111432605,-150.0,0.00037844,2]
[312624365,1706111432614,-150.0,0.00037848,2]
[312624366,1706111432623,-150.0,0.00037848,2]
[312624367,1706111432632,-150.0,0.00037849,2]
[312624368,1706111432641,-300.0,0.00037859,2]
[312624369,1706111432651,-150.0,0.00037862,2]
[312624370,1706111432660,-150.0,0.00037863,2]
[312624371,1706111432670,-300.0,0.00037864,2]
[312624372,1706111432679,-150.0,0.00037865,2]
[312624373,1706111432689,-150.0,0.00037868,2]
[312624374,1706111432699,-150.0,0.00037869,2]
[312624375,1706111432708,-150.0,0.00037871,2]
[312624376,1706111432717,-150.0,0.00037874,2]
[312624377,1706111432726,-150.0,0.00037884,2]
[312624378,1706111432736,-150.0,0.00037885,2]
[312624379,1706111432746,-150.0,0.00037885,2]
[312624380,1706111432755,-150.0,0.00037885,2]
[312624381,1706111432765,-150.0,0.00037886,2]
[312624382,1706111432775,-300.0,0.00037894,2]
[312624383,1706111432785,-563.63519946,0.00037895,2]
[312624384,1706111432794,-332.73713942,0.00037895,8]
[312624385,1706111432804,-150.0,0.00037897,2]
[312624386,1706111432814,-150.0,0.00037897,2]
[312624387,1706111432824,-245.22630715,0.00037898,2]
[312624388,1706111432835,-150.0,0.00037904,2]
[312624389,1706111432846,-300.0,0.00037911,2]
[312624390,1706111432858,-150.0,0.00037912,2]
[312624391,1706111432870,-150.0,0.00037912,2]
[312624392,1706111432880,-150.0,0.00037913,2]
[312624393,1706111432891,-150.0,0.00037914,2]
[312624394,1706111432901,-150.0,0.00037917,2]
[312624395,1706111432911,-150.0,0.00037922,2]
[312624396,1706111432921,-150.0,0.00037922,2]
[312624397,1706111432931,-156.62488522,0.00037922,2]
[312624398,1706111432941,-150.0,0.00037925,2]
[312624399,1706111432952,-1500.0,0.00037927,2]
[312624400,1706111432963,-150.0,0.00037928,2]
[312624401,1706111432972,-943.0,0.00037931,2]
[312624402,1706111432981,-835.0,0.00037931,2]
[312624403,1706111432990,-150.0,0.00037931,2]
[312624404,1706111433000,-209.0,0.00037931,2]
[312624405,1706111433010,-237.978,0.00037931,2]
[312624406,1706111433019,-150.0,0.00037932,2]
[312624407,1706111433028,-150.0,0.00037932,2]
[312624408,1706111433038,-150.0,0.00037935,2]
[312624409,1706111433047,-184.04728965,0.00037935,2]
[312624410,1706111433057,-150.0,0.00037937,2]
[312624411,1706111433067,-150.0,0.00037941,2]
[312624412,1706111433077,-150.0,0.00037943,2]
[312624413,1706111433086,-269.0,0.00037944,5]
[312624414,1706111433095,-300.0,0.00037947,2]
[312624415,1706111433106,-235.89308219,0.00037948,2]
[312624416,1706111433115,-150.0,0.0003795,2]
[312624417,1706111433124,-150.0,0.00037954,2]
[312624418,1706111433134,-300.0,0.00037956,2]
[312624419,1706111433143,-156.62488522,0.00037957,2]
[312624420,1706111433153,-300.0,0.00037958,2]
[312624421,1706111433162,-150.0,0.00037971,2]
[312624422,1706111433171,-150.0,0.00037971,2]
[312624423,1706111433181,-300.0,0.00037988,2]
[312624424,1706111433190,-425.31736673,0.00037989,14]
[312624425,1706111433199,-50373.19256539,0.0003799,2]
[312624426,1706111433264,-2072.78455402,0.0003799,2]
[312624427,1706111433276,-262.38226672,0.0003799,2]
[312624428,1706111435469,596.24428337,0.0002,7]
[312624437,1706111437652,-352.58,0.00037985,2]
[312624438,1706111437661,-352.58,0.00037988,2]
[312624444,1706111438022,-352.58,0.00037988,2]
[312624447,1706111438048,-28234.70253423,0.0003799,2]
[312624450,1706111438069,-14788.32604924,0.0003799,2]
[312624451,1706111438078,-156.62488522,0.00037991,2]
[312624453,1706111438088,-804.66493999,0.00037992,4]
[312624455,1706111438097,-150.0,0.00037992,2]
[312624457,1706111438106,-352.58,0.00037995,2]
[312624459,1706111438117,-228.36469337,0.00037995,14]
[312624461,1706111438126,-233.38894544,0.00037995,14]
[312624463,1706111438135,-31977.54425601,0.00037995,2]
[312624470,1706111438200,-209114.11217999,0.00037995,2]
[312624472,1706111438209,-2069.9047356,0.00037995,2]
[312624474,1706111438218,-7106.77367024,0.00037995,5]
[312624476,1706111438227,-197.63805697,0.00037996,2]
[312624478,1706111438236,-485.86244953,0.00037996,2]
[312624628,1706111440127,-603.155,0.00037996,2]
[312624629,1706111440307,-1283.259996,0.00037996,2]
[312624630,1706111440318,-926.51731264,0.00037996,2]
[312624631,1706111440328,-640.51344725,0.00037997,2]
[312624632,1706111440338,-1385.98122,0.00037997,2]
[312624633,1706111440347,-600.37207933,0.00037998,4]
[312624634,1706111440356,-1600.0,0.00037998,4]
[312624635,1706111440367,-506.36803543,0.00037998,4]
[312624636,1706111440376,-13080.03973811,0.00037998,4]
[312624637,1706111440385,-155.48095526,0.00037998,4]
[312624638,1706111440395,-448.27259389,0.00037998,4]
[312624639,1706111440406,-8961.38344061,0.00037998,4]
[312624640,1706111440415,-615.21134689,0.00037998,4]
[312624641,1706111440424,-11234.26684266,0.00037998,4]
[312624667,1706111442853,-604.8212046,0.00037998,4]
[312624717,1706111446003,-151.46361757,0.00036098,2]
[312624718,1706111446013,-155.0,0.00037997,2]
[312624719,1706111446022,-404.57580406,0.00037998,4]
[312624720,1706111446108,-2011.2645,0.00037998,4]
[312624783,1706111898348,155.63991982,0.00020697,2]
[312624787,1706111946983,245.13099503,0.00020491,2]
[312624788,1706111962099,155.23350281,0.00020697,2]
[312624789,1706111969000,220.47098243,0.00020697,2]
[312624790,1706111973108,169.97278187,0.00020697,2]
[312624791,1706111974169,155.0,0.00020697,2]
[312624792,1706111974999,155.17340278,0.00020697,2]
[312624793,1706111975424,155.08034995,0.00020697,2]
[312624794,1706111976994,533.75788513,0.00020697,2]
[312624795,1706111977476,155.11326958,0.00020697,2]
[312624796,1706111977535,206.00275449,0.00020697,2]
[312624797,1706111977794,155.241934,0.00020697,2]
[312624798,1706111978400,155.27229983,0.00020697,2]
[312624800,1706111978585,155.82902494,0.00020697,2]
[312624801,1706111979582,1780.40489126,0.00020697,2]
[312624807,1706111984238,155.0,0.00020697,2]
[312625033,1706112225628,1228.53056958,0.00020491,2]
[312625041,1706112287021,850.76494195,0.00020491,2]
[312625042,1706112288059,282.99860058,0.00020491,2]
[312625045,1706112290464,1023.89078486,0.00020491,2]
[312625047,1706112301077,863.26199935,0.00020491,2]
[312625048,1706112307999,282.99860058,0.00020491,2]
[312625052,1706112314469,1023.89078486,0.00020491,2]
[312625054,1706112328410,282.99860058,0.00020491,2]
[312625057,1706112336023,2182.6793036,0.00020286,2]
[312625058,1706112336476,500.29036694,0.00020491,2]
[312625059,1706112346437,250.62725375,0.00020491,2]
[312625061,1706112354031,2182.6793036,0.00020286,2]
[312625064,1706112374018,1570.6413928,0.00020286,2]
[312625068,1706112420008,331.08146283,0.00020083,2]
[312625070,1706112425354,283.43457066,0.00020286,2]
[312625071,1706112426464,1034.28572866,0.00020286,2]
[312625073,1706112429416,2455.44721413,0.00020286,2]
[312625074,1706112430037,260.04157229,0.00020286,2]
[312625075,1706112430964,155.8143461,0.00020286,2]
[312625076,1706112431826,155.0,0.00020286,2]
[312625077,1706112432577,168.39971389,5e-05,2]
[312625078,1706112432649,155.0,0.00020286,2]
[312625079,1706112433573,155.18651465,0.00020286,2]
[312625080,1706112437545,284.48788147,0.00020286,2]
[312625081,1706112441569,156.91244179,0.00020286,2]
[312625082,1706112443045,287.91034943,0.00020286,2]
[312625083,1706112443124,220.47098243,0.00020286,2]
[312625084,1706112444427,164.53105547,0.00020083,2]
[312625085,1706112446982,155.0,0.00020083,2]
[312625086,1706112447630,441.1318414,0.00020083,2]
[312625087,1706112447816,161.22573928,0.00020083,2]
[312625088,1706112449513,158.22418716,0.00020083,2]
[312625089,1706112450026,260.04157229,0.00020083,2]
[312625091,1706112454634,155.0,0.00020083,2]
[312625092,1706112457768,156.91244179,0.00020083,2]
[312625093,1706112459530,286.47149558,0.00020083,2]
[312625094,1706112461141,220.47098243,0.00020083,2]
[312625095,1706112461500,155.46153964,0.00020083,2]
[312625096,1706112462933,161.14501792,0.00020083,2]
[312625099,1706112470035,260.04157229,0.00020083,2]
[312625100,1706112472661,158.74411713,0.00020083,2]
[312625101,1706112473554,156.91244179,0.00020083,2]
[312625102,1706112481116,210.09207334,0.00020083,2]
[312625103,1706112483488,155.0,0.00020083,2]
[312625104,1706112486020,260.04157229,0.00020083,2]
[312625106,1706112491599,156.91244179,0.00020083,2]
[312625107,1706112497506,155.0,0.00020083,2]
[312625109,1706112508046,260.04157229,0.00020083,2]
[312625110,1706112511942,156.91244179,0.00020083,2]
[312625111,1706112515503,155.0,0.00020083,2]
[312625113,1706112530031,260.04157229,0.00020083,2]
[312625114,1706112535562,156.91244179,0.00020083,2]
[312625117,1706112541495,275.09783155,0.00020083,2]
[312625119,1706112550047,220.22500026,0.00020083,2]
[312625120,1706112553594,156.91244179,0.00020083,2]
[312625123,1706112577574,196.23510558,0.00020083,2]
[312625143,1706112631851,-980.65191279,0.00021995,2]
[312625144,1706112632015,-19.34808721,0.00021995,2]
[312625145,1706112632024,-697.62700742,0.00021995,2]
[312625146,1706112632033,-469.41689424,0.00021996,2]
[312625147,1706112632042,-223.17405044,0.00022,2]
[312625148,1706112632051,-4633.02677936,0.0002277,2]
[312625353,1706112637864,-310.51257539,0.0002277,2]
[312625354,1706112637875,-804.84838118,0.0002277,2]
[312625355,1706112637886,-741.27723955,0.0002277,2]
[312625356,1706112637898,-420.8888349,0.0002277,2]
[312625357,1706112638112,-3638.27146994,0.0002277,2]
[312625358,1706112638123,-368.15848542,0.0002277,2]
[312625359,1706112638159,-314.33799573,0.0002277,2]
[312625360,1706112638190,-6267.08146283,0.0002277,2]
[312625361,1706112638245,-280.0,0.0002277,2]
[312625493,1706112642899,-707.96866907,0.0002277,2]
[312625494,1706112642910,-782.76003,0.0002277,2]
[312625495,1706112643011,-453.02011,0.0002277,2]
[312625496,1706112643023,-503.0,0.0002277,2]
[312625497,1706112643072,-150018.84796663,0.0002277,2]
[312625498,1706112643081,-300.0,0.000228,8]
[312625499,1706112643090,-897.18297644,0.000229,2]
[312625500,1706112643100,-153.97870381,0.000229,2]
[312625501,1706112643110,-829.18789621,0.000229,2]
[312625502,1706112643119,-183.46377966,0.000229,2]
[312625503,1706112643129,-1468.31321051,0.000229,2]
[312625504,1706112643138,-1790.79165296,0.000229,2]
[312625505,1706112643148,-577.22935563,0.000229,2]
[312625506,1706112643158,-3988.25416676,0.000229,2]
[312625507,1706112643167,-600.0,0.000229,8]
[312625508,1706112643176,-1200.0,0.00022995,2]
[312625509,1706112643186,-301.21340696,0.00022997,2]
[312625511,1706112643195,-2678.90182877,0.00022997,2]
[312625512,1706112643204,-485.24377081,0.00022997,2]
[312625513,1706112643214,-1033.82008151,0.00022998,2]
[312625514,1706112643223,-9348.13453514,0.00022999,2]
[312625515,1706112643235,-500.0,0.00022999,2]
[312625516,1706112643245,-500.0,0.00022999,2]
[312625517,1706112643254,-490.6470275,0.00022999,2]
[312625518,1706112643264,-500.0,0.00022999,2]
[312625519,1706112643273,-500.0,0.00022999,2]
[312625520,1706112643285,-500.0,0.00022999,2]
[312625521,1706112643294,-500.0,0.00022999,2]
[312625522,1706112643304,-500.0,0.00022999,2]
[312625523,1706112643314,-500.0,0.00022999,2]
[312625524,1706112643325,-500.0,0.00022999,2]
[312625525,1706112643334,-500.0,0.00022999,2]
[312625526,1706112643344,-500.0,0.00022999,2]
[312625527,1706112643354,-388.50602929,0.00022999,2]
[312625528,1706112643364,-500.0,0.00022999,2]
[312625529,1706112643373,-500.0,0.00022999,2]
[312625530,1706112643382,-500.0,0.00022999,2]
[312625531,1706112643391,-500.0,0.00022999,2]
[312625532,1706112643401,-500.0,0.00022999,2]
[312625533,1706112643410,-587.75363249,0.00022999,2]
[312625534,1706112643419,-500.0,0.00022999,2]
[312625535,1706112643429,-500.0,0.00022999,2]
[312625536,1706112643438,-500.0,0.00022999,2]
[312625537,1706112643447,-500.0,0.00022999,2]
[312625538,1706112643457,-500.0,0.00022999,2]
[312625539,1706112643467,-500.0,0.00022999,2]
[312625540,1706112643477,-500.0,0.00022999,2]
[312625541,1706112643486,-500.0,0.00022999,2]
[312625542,1706112643496,-500.0,0.00022999,2]
[312625543,1706112643505,-500.0,0.00022999,2]
[312625544,1706112643514,-500.0,0.00022999,2]
[312625545,1706112643524,-500.0,0.00022999,2]
[312625546,1706112643533,-500.0,0.00022999,2]
[312625547,1706112643542,-500.0,0.00022999,2]
[312625548,1706112643551,-500.0,0.00022999,2]
[312625549,1706112643560,-500.0,0.00022999,2]
[312625550,1706112643569,-500.0,0.00022999,2]
[312625551,1706112643578,-500.0,0.00022999,2]
[312625552,1706112643587,-500.0,0.00022999,2]
[312625553,1706112643596,-500.0,0.00022999,2]
[312625554,1706112643607,-500.0,0.00022999,2]
[312625555,1706112643616,-500.0,0.00022999,2]
[312625556,1706112643625,-500.0,0.00022999,2]
[312625557,1706112643634,-632.04238885,0.00022999,2]
[312625558,1706112643643,-500.0,0.00022999,2]
[312625559,1706112643652,-500.0,0.00022999,2]
[312625560,1706112643661,-500.0,0.00022999,2]
[312625561,1706112643670,-500.0,0.00022999,2]
[312625562,1706112643679,-500.0,0.00022999,2]
[312625563,1706112643688,-500.0,0.00022999,2]
[312625564,1706112643697,-469.41689424,0.00022999,2]
[312625565,1706112643707,-469.41689424,0.00022999,2]
[312625566,1706112643716,-500.0,0.00022999,2]
[312625567,1706112643725,-619.00539901,0.00022999,2]
[312625568,1706112643735,-279.75134975,0.00022999,2]
[312625569,1706112643744,-144209.29638648,0.00023,2]
[312625579,1706112645875,-371.24785999,0.00023,2]
[312625580,1706112645989,-31221.47774737,0.00023,2]
[312625623,1706112647029,-72925.04131686,0.00023,2]
[312625624,1706112647053,-418.84953567,0.00023,2]
[312625625,1706112647068,-6378.08816799,0.00023,2]
[312625627,1706112753697,155.0,0.00020696,2]
[312625628,1706112758616,565.9057501,0.00020466,2]
[312625629,1706112758937,155.35468066,0.00020696,2]
[312625630,1706112760491,155.44142013,0.00020696,2]
[312625631,1706112764315,730.38214306,0.00021,2]
[312625637,1706113143064,3128.85949168,0.00021412,2]
[312625638,1706113159037,234.59896057,0.00021412,2]
[312625639,1706113221820,-263.7290691,0.00021994,2]
[312625640,1706113221843,-196.97758643,0.00021995,2]
[312625641,1706113221865,-412.67907844,0.00021995,2]
[312625642,1706113221889,-2905.20756788,0.00021995,2]
[312625643,1706113221911,-2623.23288806,0.00021996,2]
[312625644,1706113221934,-302.60679678,0.00021996,2]
[312625645,1706113221956,-250.61147486,0.00021996,2]
[312625646,1706113221988,-327.64544965,0.00021996,2]
[312625647,1706113222013,-827.3100888,0.00021996,2]
[312625648,1706113225992,150.0,0.00021538,2]
[312625649,1706113276342,-3629.47558166,0.00021877,2]
[312625650,1706113276366,-1418.81878163,0.00021878,2]
[312625651,1706113276388,-1046.62349539,0.00021879,2]
[312625652,1706113276412,-265.79985989,0.00021879,2]
[312625653,1706113276436,-3324.28228143,0.0002188,2]
[312625654,1706113295315,807.57967891,0.00021538,2]
[312625655,1706113314666,-202.91523791,0.00021874,2]
[312625656,1706113314691,-1071.96370442,0.00021874,2]
[312625657,1706113314713,-155.0,0.00021875,2]
[312625658,1706113314735,-249.04508672,0.00021875,2]
[312625659,1706113314757,-1257.66975103,0.00021875,2]
[312625660,1706113314778,-941.64680496,0.00021875,2]
[312625661,1706113314800,-235.42973985,0.00021875,2]
[312625662,1706113314821,-155.0,0.00021876,2]
[312625663,1706113314842,-1769.93759612,0.00021876,2]
[312625664,1706113314864,-362.14319027,0.00021876,2]
[312625665,1706113314885,-354.93675515,0.00021876,2]
[312625666,1706113314906,-155.0,0.00021876,2]
[312625667,1706113314929,-2309.54511602,0.00021876,2]
[312625668,1706113314951,-1711.28766055,0.00021876,2]
[312625669,1706113314973,-251.479357,0.00021876,2]
[312625670,1706113321340,807.57967891,0.00021538,2]
[312625671,1706113341330,807.57967891,0.00021538,2]
[312625672,1706113361535,807.57967891,0.00021538,2]
[312625673,1706113381320,807.57967891,0.00021538,2]
[312625674,1706113399344,900.09296793,0.00021538,2]
[312625675,1706113415316,422.63261501,0.00021538,2]
[312625676,1706113437473,845.26523002,0.00021538,2]
[312625677,1706113463320,422.63261501,0.00021538,2]
[312625678,1706113483909,2705.0,0.00021557,2]
[312625679,1706113487358,3802.36,0.00021557,2]
[312625680,1706113489963,422.63261501,0.00021538,2]
[312625681,1706113504498,13715.88,0.00021557,2]
[312625682,1706113512318,250.0,0.00021505,2]
[312625683,1706113513360,422.63261501,0.00021538,2]
[312625684,1706113519271,283.2384976,0.00021538,2]
[312625685,1706113519683,155.0,0.00021538,2]
[312625686,1706113523764,474.6,0.00019572,2]
[312625687,1706113527797,155.8407404,0.00019384,2]
[312625688,1706113529343,422.63261501,0.00021538,2]
[312625689,1706113531828,200.0,0.00021465,2]
[312625690,1706113539267,282.56215802,0.00019572,2]
[312625691,1706113539678,186.95672057,0.00021538,2]
[312625692,1706113551372,218.21146527,0.0002,2]
[312625693,1706113561784,292.37543854,0.00019572,2]
[312625694,1706113564609,362.59758498,0.00019572,2]
[312625695,1706113567828,251.63244978,0.00017615,2]
[312625696,1706113571192,533.55329785,0.00019572,2]
[312625697,1706113571295,183.36,0.00021436,2]
[312625698,1706113572110,1892.88295925,0.00019572,2]
[312625699,1706113576751,5197.61402861,0.00019572,2]
[312625700,1706113584184,291.26619984,0.00019572,2]
[312625701,1706113589189,536.29112856,0.00019572,2]
[312625702,1706113593763,3055.9773717,0.00019572,2]
[312625703,1706113594090,1891.34948283,0.00019572,2]
[312625704,1706113594613,361.47459832,0.00019572,2]
[312625705,1706113599116,500.0,0.00021388,2]
[312625706,1706113603198,155.0,0.00019572,2]
[312625707,1706113605006,18976.97972243,0.00019572,2]
[312625708,1706113605050,159.98,0.00017093,2]
[312625709,1706113610266,2157.841473,0.00021548,2]
[312625710,1706113616606,361.20697618,0.00019572,2]
[312625711,1706113618508,3916.47,0.00021349,2]
[312625712,1706113621499,18976.97972243,0.00019572,2]
[312625713,1706113623178,155.0,0.00019572,2]
[312625714,1706113634609,311.54705533,0.00019572,2]
[312625715,1706113639501,12126.27571396,0.00019572,2]
[312625716,1706113647214,166.23144376,0.00019572,2]
[312625717,1706113662851,150.0,0.0002133,2]
[312625718,1706113668419,161.96665803,0.00021329,2]
[312625719,1706113668669,155.0,0.00021329,2]
[312625720,1706113688327,1364.53,0.00021635,2]
[312625721,1706113700450,259.72,0.00021491,2]
[312625722,1706113726053,582.71363367,0.00021639,2]
[312625723,1706113727399,4641.49847148,0.00021639,2]
[312625724,1706113728141,245.21688013,0.00021639,2]
[312625725,1706113728854,543.55682798,0.00021639,2]
[312625726,1706113729324,525.55971601,0.00021639,2]
[312625727,1706113734145,3629.47558166,0.00021639,2]
[312625728,1706113735697,698.71506355,0.00021639,2]
[312625729,1706113736365,3047.53475621,0.00021639,2]
[312625730,1706113738670,314.64308926,0.00021639,2]
[312625731,1706113743708,307.94933609,0.00021639,2]